Department Family,Entity,Date Paid,Expense Type,Expenses Area,Supplier Name,Transaction Reference,Total,VAT Registration Number,Vlook up 
Department of Health,Imperial College Healthcare NHS Trust,06/03/2019,Acton Housing Association,Housing Deductions,A2dominion Housing Group Ltd,3945212,189953.6,Optional requirement only,Housing Deductions
Department of Health,Imperial College Healthcare NHS Trust,06/03/2019,Agency Ahps: Qualified,Div Of Women & Clin Support,Reed,3946534,30418.87,Optional requirement only,0
Department of Health,Imperial College Healthcare NHS Trust,06/03/2019,Agency Nursing: Qualified,Div Of Med & Integrated Care,Reed,3946534,115775.86,Optional requirement only,0
Department of Health,Imperial College Healthcare NHS Trust,06/03/2019,Agency Nursing: Qualified,"Div Of Surg, Cardiov & Cancer",Reed,3946534,92759.04,Optional requirement only,0
Department of Health,Imperial College Healthcare NHS Trust,06/03/2019,Car Salary Sacrifice,Ichnt Balance Sheet,Tuskerdirect Ltd,3910901,58072.83,Optional requirement only,0
Department of Health,Imperial College Healthcare NHS Trust,06/03/2019,Consultancy Fees,Div Of Med & Integrated Care,2020 Delivery Ltd,3890298,163633.2,Optional requirement only,0
Department of Health,Imperial College Healthcare NHS Trust,06/03/2019,Consultancy Fees,Div Of Med & Integrated Care,2020 Delivery Ltd,3920427,30260.4,Optional requirement only,0
Department of Health,Imperial College Healthcare NHS Trust,06/03/2019,Consultancy Fees,Div Of Med & Integrated Care,2020 Delivery Ltd,3929477,31441.2,Optional requirement only,0
Department of Health,Imperial College Healthcare NHS Trust,06/03/2019,Cx-Hh Consultant Load,Ichnt Balance Sheet,Dr Andrew Wright,3945257,55177.5,Optional requirement only,0
Department of Health,Imperial College Healthcare NHS Trust,06/03/2019,Cy Auc -Addns-Bd Purchased,Capital Summary,Alarm Communication Limited,3927673,42000,Optional requirement only,0
Department of Health,Imperial College Healthcare NHS Trust,06/03/2019,Cy Auc -Addns-Bd Purchased,Capital Summary,Deanway Builders,3945161,91200,Optional requirement only,0
Department of Health,Imperial College Healthcare NHS Trust,06/03/2019,Cy Auc -Addns-Bd Purchased,Capital Summary,Me Construction Ltd,3941723,34690.8,Optional requirement only,0
Department of Health,Imperial College Healthcare NHS Trust,06/03/2019,Cy Auc -Addns-Bd Purchased,Capital Summary,Metricab Power Engineering Ltd,3944924,60826.93,Optional requirement only,0
Department of Health,Imperial College Healthcare NHS Trust,06/03/2019,Cy Auc -Addns-Bd Purchased,Capital Summary,Redbrooks Specialist Contracts Ltd,3942508,74803.84,Optional requirement only,0
Department of Health,Imperial College Healthcare NHS Trust,06/03/2019,Cy Auc -Addns- P & M-Purchased,Capital Summary,Varian Medical Systems Uk Ltd,3915952,219165,Optional requirement only,0
Department of Health,Imperial College Healthcare NHS Trust,06/03/2019,Cy Auc -Addns- Prof Fee)-Purch,Capital Summary,Ingleton Wood,3910677,31752.7,Optional requirement only,0
Department of Health,Imperial College Healthcare NHS Trust,06/03/2019,Dist Award - Local Cea,Div Of Med & Integrated Care,Imperial College London,3939721,30211.01,Optional requirement only,0
Department of Health,Imperial College Healthcare NHS Trust,06/03/2019,Dist Award - Nat Cea,Div Of Med & Integrated Care,Imperial College London,3939721,97709.35,Optional requirement only,0
Department of Health,Imperial College Healthcare NHS Trust,06/03/2019,Dist Award - Nat Cea,"Div Of Surg, Cardiov & Cancer",Imperial College London,3939721,69591.91,Optional requirement only,0
Department of Health,Imperial College Healthcare NHS Trust,06/03/2019,Dist Award - Nat Cea,Div Of Women & Clin Support,Imperial College London,3939721,36454.44,Optional requirement only,0
Department of Health,Imperial College Healthcare NHS Trust,06/03/2019,Dist Award - Nat Cea,Medical Director Summary,Imperial College London,3939721,27683.95,Optional requirement only,0
Department of Health,Imperial College Healthcare NHS Trust,06/03/2019,Drugs Nhs,Div Of Med & Integrated Care,Central & North West London Nhs Ft,3893813,27951.89,Optional requirement only,0
Department of Health,Imperial College Healthcare NHS Trust,06/03/2019,Ext Contr Logistics,Finance Directorate,Eleanor Hospital Logistics Ltd,3929456,158628.11,Optional requirement only,0
Department of Health,Imperial College Healthcare NHS Trust,06/03/2019,Home Electronics Cr,Ichnt Balance Sheet,Northumbria Healthcare Nhs Foundation Trust,3904763,39394.66,Optional requirement only,0
Department of Health,Imperial College Healthcare NHS Trust,06/03/2019,Home Electronics Cr,Ichnt Balance Sheet,Northumbria Healthcare Nhs Foundation Trust,3923391,28118.19,Optional requirement only,0
Department of Health,Imperial College Healthcare NHS Trust,06/03/2019,Ic Pay Recharge In: Med,Div Of Med & Integrated Care,Imperial College London,3939721,165913.48,Optional requirement only,0
Department of Health,Imperial College Healthcare NHS Trust,06/03/2019,Ic Pay Recharge In: Med,"Div Of Surg, Cardiov & Cancer",Imperial College London,3939721,361981.08,Optional requirement only,0
Department of Health,Imperial College Healthcare NHS Trust,06/03/2019,Ic Pay Recharge In: Med,"Div Of Surg, Cardiov & Cancer",Imperial College London,3939722,42583.03,Optional requirement only,0
Department of Health,Imperial College Healthcare NHS Trust,06/03/2019,Ic Pay Recharge In: Med,Div Of Women & Clin Support,Imperial College London,3939721,85171.82,Optional requirement only,0
Department of Health,Imperial College Healthcare NHS Trust,06/03/2019,Jac - Stock,Stock,Alloga Uk Ltd,3939238,111192,Optional requirement only,Stock
Department of Health,Imperial College Healthcare NHS Trust,06/03/2019,Jac - Stock,Stock,Genzyme Therapeutics Ltd,3928230,92994,Optional requirement only,Stock
Department of Health,Imperial College Healthcare NHS Trust,06/03/2019,Jac - Stock,Stock,Genzyme Therapeutics Ltd,3941208,160626,Optional requirement only,Stock
Department of Health,Imperial College Healthcare NHS Trust,06/03/2019,Jac - Stock,Stock,Janssen-Cilag Ltd,3928226,103680,Optional requirement only,Stock
Department of Health,Imperial College Healthcare NHS Trust,06/03/2019,Jac - Stock,Stock,Novartis Pharmaceutical (Uk) Ltd,3931736,31075.08,Optional requirement only,Stock
Department of Health,Imperial College Healthcare NHS Trust,06/03/2019,Lease Charges,Information & Comms Technology,Xerox (Uk) Ltd,3946130,34661.32,Optional requirement only,0
Department of Health,Imperial College Healthcare NHS Trust,06/03/2019,Lease Charges,Information & Comms Technology,Xerox (Uk) Ltd,3946133,42513.05,Optional requirement only,0
Department of Health,Imperial College Healthcare NHS Trust,06/03/2019,Med & Prof Fees (Imaging Cons),Ichnt Balance Sheet,Lindo Wing Radiology Llp,3945304,160454.5,Optional requirement only,0
Department of Health,Imperial College Healthcare NHS Trust,06/03/2019,Other Research Exp - Non-Pay,Rd Medical Directorate,Imperial College London,3938227,872712,Optional requirement only,0
Department of Health,Imperial College Healthcare NHS Trust,06/03/2019,Srvcsrecd-Other Nhs,Finance Directorate,Salford Royal Nhs Foundation Trust,3892157,31261,Optional requirement only,0
Department of Health,Imperial College Healthcare NHS Trust,06/03/2019,Thames Valley Housing Assoc,Housing Deductions,Metropolitan Thames Valley,3945213,110859.18,Optional requirement only,Housing Deductions
Department of Health,Imperial College Healthcare NHS Trust,07/03/2019,Childcare Voucher (Kids Unltd),Childcare Vouchers,Sodexo Motivation Solutions Uk Ltd,3945109,59916.09,Optional requirement only,Childcare Vouchers
Department of Health,Imperial College Healthcare NHS Trust,07/03/2019,Consultancy Fees,"Div Of Surg, Cardiov & Cancer",Acumentice Limited,3942348,157953,Optional requirement only,0
Department of Health,Imperial College Healthcare NHS Trust,07/03/2019,Consultancy Fees,Finance Directorate,Pricewaterhousecoopers Llp,3890305,58320,Optional requirement only,0
Department of Health,Imperial College Healthcare NHS Trust,07/03/2019,Cy Auc -Addns-Bd Purchased,Capital Summary,Eta  Projects Ltd,3931338,120000,Optional requirement only,0
Department of Health,Imperial College Healthcare NHS Trust,07/03/2019,Cy Auc -Addns- P & M-Purchased,Capital Summary,Philips Healthcare,3932993,678000,Optional requirement only,0
Department of Health,Imperial College Healthcare NHS Trust,07/03/2019,Cy Auc -Addns- P & M-Purchased,Capital Summary,Raysearch Laboratories Ab,3929257,39518,Optional requirement only,0
Department of Health,Imperial College Healthcare NHS Trust,07/03/2019,Dist Award - Local Cea,Div Of Med & Integrated Care,Imperial College London,3942477,27480.11,Optional requirement only,0
Department of Health,Imperial College Healthcare NHS Trust,07/03/2019,Dist Award - Nat Cea,Div Of Med & Integrated Care,Imperial College London,3942477,112705.81,Optional requirement only,0
Department of Health,Imperial College Healthcare NHS Trust,07/03/2019,Dist Award - Nat Cea,"Div Of Surg, Cardiov & Cancer",Imperial College London,3942477,69597.81,Optional requirement only,0
Department of Health,Imperial College Healthcare NHS Trust,07/03/2019,Dist Award - Nat Cea,Div Of Women & Clin Support,Imperial College London,3942477,36457.13,Optional requirement only,0
Department of Health,Imperial College Healthcare NHS Trust,07/03/2019,Dist Award - Nat Cea,Medical Director Summary,Imperial College London,3942477,27685.37,Optional requirement only,0
Department of Health,Imperial College Healthcare NHS Trust,07/03/2019,Gas,Nursing Directorate,Corona Energy,3937570,87259.13,Optional requirement only,0
Department of Health,Imperial College Healthcare NHS Trust,07/03/2019,Gas,Nursing Directorate,Corona Energy,3937571,121577.53,Optional requirement only,0
Department of Health,Imperial College Healthcare NHS Trust,07/03/2019,Gas,Nursing Directorate,Corona Energy,3937577,97001.99,Optional requirement only,0
Department of Health,Imperial College Healthcare NHS Trust,07/03/2019,Gas,Nursing Directorate,Corona Energy,3937583,260896.49,Optional requirement only,0
Department of Health,Imperial College Healthcare NHS Trust,07/03/2019,Ic Pay Recharge In: Med,Div Of Med & Integrated Care,Imperial College London,3942477,171700.66,Optional requirement only,0
Department of Health,Imperial College Healthcare NHS Trust,07/03/2019,Ic Pay Recharge In: Med,"Div Of Surg, Cardiov & Cancer",Imperial College London,3942477,337532.9,Optional requirement only,0
Department of Health,Imperial College Healthcare NHS Trust,07/03/2019,Ic Pay Recharge In: Med,"Div Of Surg, Cardiov & Cancer",Imperial College London,3942478,33846.27,Optional requirement only,0
Department of Health,Imperial College Healthcare NHS Trust,07/03/2019,Ic Pay Recharge In: Med,Div Of Women & Clin Support,Imperial College London,3942477,81138.78,Optional requirement only,0
Department of Health,Imperial College Healthcare NHS Trust,07/03/2019,Jac - Stock,Stock,Aah Pharmaceuticals Limited,3937855,48058.69,Optional requirement only,Stock
Department of Health,Imperial College Healthcare NHS Trust,07/03/2019,Jac - Stock,Stock,Csl Behring Uk Ltd,3931788,96850,Optional requirement only,Stock
Department of Health,Imperial College Healthcare NHS Trust,07/03/2019,Jac - Stock,Stock,Genzyme Therapeutics Ltd,3941207,143718,Optional requirement only,Stock
Department of Health,Imperial College Healthcare NHS Trust,07/03/2019,Jac - Stock,Stock,Qualasept Ltd,3942842,275322,Optional requirement only,Stock
Department of Health,Imperial College Healthcare NHS Trust,07/03/2019,Jac - Stock,Stock,Roche Products Ltd,3929618,57525.89,Optional requirement only,Stock
Department of Health,Imperial College Healthcare NHS Trust,07/03/2019,Nhs Pay Recharge In: Med,Div Of Women & Clin Support,Great Ormond Street Hosp For Children Nhs Ft,3893643,36931.08,Optional requirement only,0
Department of Health,Imperial College Healthcare NHS Trust,07/03/2019,Nhs Pay Recharge In: Med,Pathology,Nhs Blood And Transplant,3892608,33744,Optional requirement only,0
Department of Health,Imperial College Healthcare NHS Trust,07/03/2019,Other Research Exp - Non-Pay,Rd Medical Directorate,The West London Research Network Cic,3948790,62500,Optional requirement only,0
Department of Health,Imperial College Healthcare NHS Trust,07/03/2019,Services Received - Nhsts,Div Of Women & Clin Support,Snore Solutions Uk Ltd,3941734,30385,Optional requirement only,0
Department of Health,Imperial College Healthcare NHS Trust,07/03/2019,Supplies Issues Recharges,Stock,Nhs Supply Chain (Consumables 101),3901573,175545.52,Optional requirement only,Stock
Department of Health,Imperial College Healthcare NHS Trust,07/03/2019,Supplies Issues Recharges,Stock,Nhs Supply Chain (Consumables 101),3901574,115780.44,Optional requirement only,Stock
Department of Health,Imperial College Healthcare NHS Trust,07/03/2019,Supplies Issues Recharges,Stock,Nhs Supply Chain (Consumables 101),3901575,212957.67,Optional requirement only,Stock
Department of Health,Imperial College Healthcare NHS Trust,07/03/2019,Supplies Issues Recharges,Stock,Nhs Supply Chain (Consumables 101),3923699,32528.91,Optional requirement only,Stock
Department of Health,Imperial College Healthcare NHS Trust,07/03/2019,Supplies Issues Recharges,Stock,Nhs Supply Chain (Consumables 101),3927747,114509.76,Optional requirement only,Stock
Department of Health,Imperial College Healthcare NHS Trust,07/03/2019,Supplies Issues Recharges,Stock,Nhs Supply Chain (Consumables 101),3927749,142808.4,Optional requirement only,Stock
Department of Health,Imperial College Healthcare NHS Trust,07/03/2019,Supplies Issues Recharges,Stock,Nhs Supply Chain (Consumables 101),3927750,122077.42,Optional requirement only,Stock
Department of Health,Imperial College Healthcare NHS Trust,07/03/2019,Supplies Issues Recharges,Stock,Nhs Supply Chain (Consumables 101),3932124,112717.01,Optional requirement only,Stock
Department of Health,Imperial College Healthcare NHS Trust,07/03/2019,Supplies Issues Recharges,Stock,Nhs Supply Chain (Consumables 101),3932125,145756.86,Optional requirement only,Stock
Department of Health,Imperial College Healthcare NHS Trust,07/03/2019,Supplies Issues Recharges,Stock,Nhs Supply Chain (Consumables 101),3932127,166903.63,Optional requirement only,Stock
Department of Health,Imperial College Healthcare NHS Trust,12/03/2019,Cleaning Materials,Nursing Directorate,Synergy Health Managed Services Ltd,3949936,43080.95,Optional requirement only,0
Department of Health,Imperial College Healthcare NHS Trust,12/03/2019,Consultant,Medical Director Summary,Imperial College London,3935046,150942.34,Optional requirement only,0
Department of Health,Imperial College Healthcare NHS Trust,12/03/2019,Cy Auc -Addns- It Eqpt-Addns,Capital Summary,Xerox (Uk) Ltd,3946128,521004,Optional requirement only,0
Department of Health,Imperial College Healthcare NHS Trust,12/03/2019,Cy Auc -Addns- P & M-Purchased,Capital Summary,Bruker Uk Ltd,3926439,63154.3,Optional requirement only,0
Department of Health,Imperial College Healthcare NHS Trust,12/03/2019,Cy Auc -Addns- P & M-Purchased,Capital Summary,Nhs Supply Chain (Capital/Leasing 905),3948504,78640.56,Optional requirement only,0
Department of Health,Imperial College Healthcare NHS Trust,12/03/2019,Cy Auc -Addns- P & M-Purchased,Capital Summary,Philips Healthcare,3939492,36156.74,Optional requirement only,0
Department of Health,Imperial College Healthcare NHS Trust,12/03/2019,Cy Auc -Addns- P & M-Purchased,Capital Summary,Sisk Healthcare (Uk) Ltd,3932758,278706,Optional requirement only,0
Department of Health,Imperial College Healthcare NHS Trust,12/03/2019,Dialysers,Div Of Med & Integrated Care,Baxter Healthcare Ltd,3927093,130645.42,Optional requirement only,0
Department of Health,Imperial College Healthcare NHS Trust,12/03/2019,Dialysers,Div Of Med & Integrated Care,Baxter Healthcare Ltd,3927748,49574.7,Optional requirement only,0
Department of Health,Imperial College Healthcare NHS Trust,12/03/2019,Drugs Nhs,Div Of Women & Clin Support,Lloyds Retail Chemists Ltd,3919231,2904945.56,Optional requirement only,0
Department of Health,Imperial College Healthcare NHS Trust,12/03/2019,Drugs Nhs,Div Of Women & Clin Support,Nhs Business Services Authority,3922650,45678.94,Optional requirement only,0
Department of Health,Imperial College Healthcare NHS Trust,12/03/2019,Ext Contr Laundry,Nursing Directorate,Synergy Health Managed Services Ltd,3949937,50281.85,Optional requirement only,0
Department of Health,Imperial College Healthcare NHS Trust,12/03/2019,Ext Contr Laundry,Nursing Directorate,Synergy Health Managed Services Ltd,3949938,53311.25,Optional requirement only,0
Department of Health,Imperial College Healthcare NHS Trust,12/03/2019,Ext Contr Laundry,Nursing Directorate,Synergy Health Managed Services Ltd,3949939,56550.98,Optional requirement only,0
Department of Health,Imperial College Healthcare NHS Trust,12/03/2019,Fp10s,Div Of Women & Clin Support,Nhs Business Services Authority,3940743,46992.32,Optional requirement only,0
Department of Health,Imperial College Healthcare NHS Trust,12/03/2019,Ic Library Expenditure,Medical Director Summary,Imperial College London,3935045,98214.11,Optional requirement only,0
Department of Health,Imperial College Healthcare NHS Trust,12/03/2019,Interpreting Services,Div Of Women & Clin Support,Oncall Interpreters Ltd [Cw],3933988,36525.3,Optional requirement only,0
Department of Health,Imperial College Healthcare NHS Trust,12/03/2019,Jac - Stock,Stock,Bayer Plc,3932203,30415.2,Optional requirement only,Stock
Department of Health,Imperial College Healthcare NHS Trust,12/03/2019,Jac - Stock,Stock,Bayer Plc,3932205,104880,Optional requirement only,Stock
Department of Health,Imperial College Healthcare NHS Trust,12/03/2019,Other Research Exp - Non-Pay,Rd Medical Directorate,London North West Univ Healthcare Nhs Trust,3920058,378840,Optional requirement only,0
Department of Health,Imperial College Healthcare NHS Trust,12/03/2019,Other Research Exp - Non-Pay,Rd Medical Directorate,Royal Brompton And Harefield Nhs Ft,3948992,197629,Optional requirement only,0
Department of Health,Imperial College Healthcare NHS Trust,12/03/2019,Supplies Issues Recharges,Stock,Nhs Supply Chain (Maintenance 201),3904225,161699.31,Optional requirement only,Stock
Department of Health,Imperial College Healthcare NHS Trust,12/03/2019,Supplies Issues Recharges,Stock,Nhs Supply Chain (Maintenance 201),3904227,119795.9,Optional requirement only,Stock
Department of Health,Imperial College Healthcare NHS Trust,12/03/2019,Supplies Issues Recharges,Stock,Nhs Supply Chain (Maintenance 201),3904228,188524.88,Optional requirement only,Stock
Department of Health,Imperial College Healthcare NHS Trust,12/03/2019,Supplies Issues Recharges,Stock,Nhs Supply Chain (Maintenance 201),3904230,120978.8,Optional requirement only,Stock
Department of Health,Imperial College Healthcare NHS Trust,14/03/2019,Cy Auc -Addns- P & M-Purchased,Capital Summary,Nhs Supply Chain (Capital/Leasing 905),3948506,27103.98,Optional requirement only,0
Department of Health,Imperial College Healthcare NHS Trust,14/03/2019,Cy Auc -Addns- P & M-Purchased,Capital Summary,Nhs Supply Chain (Maintenance 201),3948503,67937.87,Optional requirement only,0
Department of Health,Imperial College Healthcare NHS Trust,14/03/2019,Drugs Nhs,Div Of Women & Clin Support,Lloyds Retail Chemists Ltd,3937372,3270321.85,Optional requirement only,0
Department of Health,Imperial College Healthcare NHS Trust,14/03/2019,Isotopes,Div Of Women & Clin Support,Mallinckrodt Rp Uk Ltd,3894099,36840,Optional requirement only,0
Department of Health,Imperial College Healthcare NHS Trust,14/03/2019,Jac - Stock,Stock,Qualasept Ltd,3945677,34915.2,Optional requirement only,Stock
Department of Health,Imperial College Healthcare NHS Trust,14/03/2019,Jac - Stock,Stock,Qualasept Ltd,3946660,345780,Optional requirement only,Stock
Department of Health,Imperial College Healthcare NHS Trust,14/03/2019,Lease Rents,Div Of Med & Integrated Care,Hayes Cottage Renal Unit Ltd,3952751,306033,Optional requirement only,0
Department of Health,Imperial College Healthcare NHS Trust,14/03/2019,Med & Surg Equip Leases,"Div Of Surg, Cardiov & Cancer",Shawbrook Asset Finance,3950222,37487.18,Optional requirement only,0
Department of Health,Imperial College Healthcare NHS Trust,14/03/2019,Patients Appl: Purchase,"Div Of Surg, Cardiov & Cancer",Chas A Blatchford And Sons Ltd,3937537,61537.99,Optional requirement only,0
Department of Health,Imperial College Healthcare NHS Trust,14/03/2019,Prostheses,"Div Of Surg, Cardiov & Cancer",Chas A Blatchford And Sons Ltd,3933944,33055.67,Optional requirement only,0
Department of Health,Imperial College Healthcare NHS Trust,14/03/2019,Rent,Div Of Med & Integrated Care,Nhs Property Services Ltd,3888965,78000,Optional requirement only,0
Department of Health,Imperial College Healthcare NHS Trust,14/03/2019,Rent,Div Of Med & Integrated Care,Nhs Property Services Ltd,3892126,78000,Optional requirement only,0
Department of Health,Imperial College Healthcare NHS Trust,14/03/2019,Rent,Div Of Med & Integrated Care,Nhs Property Services Ltd,3892139,78000,Optional requirement only,0
Department of Health,Imperial College Healthcare NHS Trust,14/03/2019,Rent,Div Of Med & Integrated Care,Nhs Property Services Ltd,3892250,78000,Optional requirement only,0
Department of Health,Imperial College Healthcare NHS Trust,14/03/2019,Rent,Div Of Med & Integrated Care,Nhs Property Services Ltd,3892258,78000,Optional requirement only,0
Department of Health,Imperial College Healthcare NHS Trust,14/03/2019,Rent,Div Of Med & Integrated Care,Nhs Property Services Ltd,3892345,78000,Optional requirement only,0
Department of Health,Imperial College Healthcare NHS Trust,14/03/2019,Rent,Div Of Med & Integrated Care,Nhs Property Services Ltd,3897287,78000,Optional requirement only,0
Department of Health,Imperial College Healthcare NHS Trust,14/03/2019,Rent,"Div Of Surg, Cardiov & Cancer",Nhs Property Services Ltd,3874579,39552.17,Optional requirement only,0
Department of Health,Imperial College Healthcare NHS Trust,14/03/2019,Rent,"Div Of Surg, Cardiov & Cancer",Nhs Property Services Ltd,3874582,25426.6,Optional requirement only,0
Department of Health,Imperial College Healthcare NHS Trust,14/03/2019,Rent,"Div Of Surg, Cardiov & Cancer",Nhs Property Services Ltd,3888979,39552.17,Optional requirement only,0
Department of Health,Imperial College Healthcare NHS Trust,14/03/2019,Rent,"Div Of Surg, Cardiov & Cancer",Nhs Property Services Ltd,3892092,74496,Optional requirement only,0
Department of Health,Imperial College Healthcare NHS Trust,14/03/2019,Rent,"Div Of Surg, Cardiov & Cancer",Nhs Property Services Ltd,3892444,25426.6,Optional requirement only,0
Department of Health,Imperial College Healthcare NHS Trust,14/03/2019,Rent,Nursing Directorate,Nhs Property Services Ltd,3913156,31210.8,Optional requirement only,0
Department of Health,Imperial College Healthcare NHS Trust,14/03/2019,Services Received - Nhsts,Div Of Med & Integrated Care,Nhs Property Services Ltd,3888965,112571.07,Optional requirement only,0
Department of Health,Imperial College Healthcare NHS Trust,14/03/2019,Services Received - Nhsts,Div Of Med & Integrated Care,Nhs Property Services Ltd,3892126,141611.08,Optional requirement only,0
Department of Health,Imperial College Healthcare NHS Trust,14/03/2019,Services Received - Nhsts,Div Of Med & Integrated Care,Nhs Property Services Ltd,3892139,141611.08,Optional requirement only,0
Department of Health,Imperial College Healthcare NHS Trust,14/03/2019,Services Received - Nhsts,Div Of Med & Integrated Care,Nhs Property Services Ltd,3892250,141611.08,Optional requirement only,0
Department of Health,Imperial College Healthcare NHS Trust,14/03/2019,Services Received - Nhsts,Div Of Med & Integrated Care,Nhs Property Services Ltd,3892258,141611.08,Optional requirement only,0
Department of Health,Imperial College Healthcare NHS Trust,14/03/2019,Services Received - Nhsts,Div Of Med & Integrated Care,Nhs Property Services Ltd,3892345,112571.07,Optional requirement only,0
Department of Health,Imperial College Healthcare NHS Trust,14/03/2019,Services Received - Nhsts,Div Of Med & Integrated Care,Nhs Property Services Ltd,3892414,112571.07,Optional requirement only,0
Department of Health,Imperial College Healthcare NHS Trust,14/03/2019,Supplies Issues Recharges,Stock,Nhs Supply Chain (Consumables 101),3923697,133108.86,Optional requirement only,Stock
Department of Health,Imperial College Healthcare NHS Trust,14/03/2019,Transcription Services,Div Of Med & Integrated Care,Dictate It Ltd,3934481,37936.86,Optional requirement only,0
Department of Health,Imperial College Healthcare NHS Trust,14/03/2019,Transcription Services,"Div Of Surg, Cardiov & Cancer",Dictate It Ltd,3934479,41245.12,Optional requirement only,0
Department of Health,Imperial College Healthcare NHS Trust,15/03/2019,Agency Scient & Prof Qualified,Pathology,Reed,15202,35400.14,Optional requirement only,0
Department of Health,Imperial College Healthcare NHS Trust,15/03/2019,Blood Products,Pathology,Nhs Blood And Transplant,14989,172406.78,Optional requirement only,0
Department of Health,Imperial College Healthcare NHS Trust,15/03/2019,Clinical Managed Service Contr,Pathology,Abbott Laboratories Ltd,15739,134126.35,Optional requirement only,0
Department of Health,Imperial College Healthcare NHS Trust,15/03/2019,Clinical Managed Service Contr,Pathology,Abbott Laboratories Ltd,15748,134126.35,Optional requirement only,0
Department of Health,Imperial College Healthcare NHS Trust,15/03/2019,Ic Pay Recharge In: Med,Pathology,Imperial College London,14985,32092.85,Optional requirement only,0
Department of Health,Imperial College Healthcare NHS Trust,15/03/2019,Ic Pay Recharge In: Med,Pathology,Imperial College London,15201,32098.95,Optional requirement only,0
Department of Health,Imperial College Healthcare NHS Trust,15/03/2019,Laboratory Culture Media,Pathology,Dhl Supply Chain  (Former Excel),15136,37044,Optional requirement only,0
Department of Health,Imperial College Healthcare NHS Trust,15/03/2019,Srvcsrecd-Other Nhs,Pathology,Micropathology Ltd,14702,55166,Optional requirement only,0
Department of Health,Imperial College Healthcare NHS Trust,15/03/2019,Gas,Nursing Directorate,Corona Energy,3952907,68798.23,Optional requirement only,0
Department of Health,Imperial College Healthcare NHS Trust,15/03/2019,Gas,Nursing Directorate,Corona Energy,3952911,93437.32,Optional requirement only,0
Department of Health,Imperial College Healthcare NHS Trust,15/03/2019,Gas,Nursing Directorate,Corona Energy,3952914,61917.62,Optional requirement only,0
Department of Health,Imperial College Healthcare NHS Trust,15/03/2019,Gas,Nursing Directorate,Corona Energy,3952915,143122.62,Optional requirement only,0
Department of Health,Imperial College Healthcare NHS Trust,19/03/2019,Bldg/Eng Equip Maint/Rep,Nursing Directorate,Cbre Managed Services Ltd,3954393,166236.9,Optional requirement only,0
Department of Health,Imperial College Healthcare NHS Trust,19/03/2019,Conferences And Seminars,Nhs Elect,Grange Hotels,3955171,32257.76,Optional requirement only,0
Department of Health,Imperial College Healthcare NHS Trust,19/03/2019,Cy Auc -Addns-Bd Purchased,Capital Summary,Amber Group Limited,3945478,90474.08,Optional requirement only,0
Department of Health,Imperial College Healthcare NHS Trust,19/03/2019,Cy Auc -Addns-Bd Purchased,Capital Summary,Cbre Managed Services Ltd,3954392,50721.4,Optional requirement only,0
Department of Health,Imperial College Healthcare NHS Trust,19/03/2019,Cy Auc -Addns-Bd Purchased,Capital Summary,Cbre Managed Services Ltd,3954393,669221.65,Optional requirement only,0
Department of Health,Imperial College Healthcare NHS Trust,19/03/2019,Cy Auc -Addns- It Eqpt-Addns,Capital Summary,Gecko Technologies Ltd,3940769,62400,Optional requirement only,0
Department of Health,Imperial College Healthcare NHS Trust,19/03/2019,Ic Library Expenditure,Medical Director Summary,Imperial College London,3932175,98214.11,Optional requirement only,0
Department of Health,Imperial College Healthcare NHS Trust,19/03/2019,Jac - Stock,Stock,Baxter Healthcare Ltd,3954189,34031.27,Optional requirement only,Stock
Department of Health,Imperial College Healthcare NHS Trust,19/03/2019,Jac - Stock,Stock,Bayer Plc,3939910,41952,Optional requirement only,Stock
Department of Health,Imperial College Healthcare NHS Trust,19/03/2019,Jac - Stock,Stock,Bayer Plc,3950442,104880,Optional requirement only,Stock
Department of Health,Imperial College Healthcare NHS Trust,19/03/2019,Jac - Stock,Stock,Bayer Plc,3950443,78660,Optional requirement only,Stock
Department of Health,Imperial College Healthcare NHS Trust,19/03/2019,Jac - Stock,Stock,Bayer Plc,3953193,135295.2,Optional requirement only,Stock
Department of Health,Imperial College Healthcare NHS Trust,19/03/2019,Jac - Stock,Stock,Bms Pharmaceuticals Ltd (0034),3947529,30806.1,Optional requirement only,Stock
Department of Health,Imperial College Healthcare NHS Trust,19/03/2019,Jac - Stock,Stock,Csl Behring Uk Ltd,3937995,27950,Optional requirement only,Stock
Department of Health,Imperial College Healthcare NHS Trust,19/03/2019,Jac - Stock,Stock,Csl Behring Uk Ltd,3937996,35343.75,Optional requirement only,Stock
Department of Health,Imperial College Healthcare NHS Trust,19/03/2019,Jac - Stock,Stock,Janssen-Cilag Ltd,3941180,69120,Optional requirement only,Stock
Department of Health,Imperial College Healthcare NHS Trust,19/03/2019,Jac - Stock,Stock,Janssen-Cilag Ltd,3941190,86400,Optional requirement only,Stock
Department of Health,Imperial College Healthcare NHS Trust,19/03/2019,Other Research Exp - Pay,Rdwomen And Children Division,Imperial College London,3938215,28592.62,Optional requirement only,0
Department of Health,Imperial College Healthcare NHS Trust,19/03/2019,Phone Instal & Maint,Information & Comms Technology,Netcall Telecom Limited,3939737,115022.4,Optional requirement only,0
Department of Health,Imperial College Healthcare NHS Trust,19/03/2019,Services Received - Pcts,Div Of Med & Integrated Care,Chelsea And  Westminster Hospital Nhs Ft,3927190,40000,Optional requirement only,0
Department of Health,Imperial College Healthcare NHS Trust,19/03/2019,Stents,"Div Of Surg, Cardiov & Cancer",W L Gore & Associates (Uk) Ltd,3891492,39840,Optional requirement only,0
Department of Health,Imperial College Healthcare NHS Trust,20/03/2019,Income Tax Paye,Ichnt Balance Sheet,Hmrc Government Employers Account,3957159,15550740.2,Optional requirement only,0
Department of Health,Imperial College Healthcare NHS Trust,21/03/2019,Clinical Managed Service Contr,"Div Of Surg, Cardiov & Cancer",Medtronic Ltd,3922451,258664.32,Optional requirement only,0
Department of Health,Imperial College Healthcare NHS Trust,21/03/2019,Clinical Managed Service Contr,"Div Of Surg, Cardiov & Cancer",Medtronic Ltd,3922452,295661.87,Optional requirement only,0
Department of Health,Imperial College Healthcare NHS Trust,21/03/2019,Computer Software/License,Information & Comms Technology,Varian Medical Systems Uk Ltd,3952740,118210.8,Optional requirement only,0
Department of Health,Imperial College Healthcare NHS Trust,21/03/2019,Cy Auc -Addns-Bd Purchased,Capital Summary,Cbre Managed Services Ltd,3955769,1153520.32,Optional requirement only,0
Department of Health,Imperial College Healthcare NHS Trust,21/03/2019,Cy Auc -Addns-Bd Purchased,Capital Summary,Conduct Services Ltd,3939599,68400,Optional requirement only,0
Department of Health,Imperial College Healthcare NHS Trust,21/03/2019,Cy Auc -Addns-Bd Purchased,Capital Summary,Playfords Limited,3940117,153725.58,Optional requirement only,0
Department of Health,Imperial College Healthcare NHS Trust,21/03/2019,Cy Auc -Addns-Bd Purchased,Capital Summary,Ram Building Consultancy Ltd,3950016,31462.34,Optional requirement only,0
Department of Health,Imperial College Healthcare NHS Trust,21/03/2019,Cy Auc -Addns- P & M-Purchased,Capital Summary,Fuji Film Uk Limited,3944258,76905.12,Optional requirement only,0
Department of Health,Imperial College Healthcare NHS Trust,21/03/2019,Cy Auc -Addns- P & M-Purchased,Capital Summary,Philips Healthcare,3955840,46216.56,Optional requirement only,0
Department of Health,Imperial College Healthcare NHS Trust,21/03/2019,Cy Auc -Addns- P & M-Purchased,Capital Summary,Ukhifu Limited,3942776,330000,Optional requirement only,0
Department of Health,Imperial College Healthcare NHS Trust,21/03/2019,Hosting Service Expenses,Nhs Elect,Insource Select Ltd,3940169,31104,Optional requirement only,0
Department of Health,Imperial College Healthcare NHS Trust,21/03/2019,Jac - Stock,Stock,Aah Pharmaceuticals Limited,3946462,54893.05,Optional requirement only,Stock
Department of Health,Imperial College Healthcare NHS Trust,21/03/2019,Jac - Stock,Stock,Aah Pharmaceuticals Limited,3955499,64825.25,Optional requirement only,Stock
Department of Health,Imperial College Healthcare NHS Trust,21/03/2019,Jac - Stock,Stock,Alexion Pharma Uk Ltd,3950508,75600,Optional requirement only,Stock
Department of Health,Imperial College Healthcare NHS Trust,21/03/2019,Jac - Stock,Stock,Bayer Plc,3953194,62928,Optional requirement only,Stock
Department of Health,Imperial College Healthcare NHS Trust,21/03/2019,Jac - Stock,Stock,Gilead Sciences Ltd,3941347,41422.25,Optional requirement only,Stock
Department of Health,Imperial College Healthcare NHS Trust,21/03/2019,Jac - Stock,Stock,Gilead Sciences Ltd,3950475,42408.49,Optional requirement only,Stock
Department of Health,Imperial College Healthcare NHS Trust,21/03/2019,Jac - Stock,Stock,Qualasept Ltd,3951565,96794.45,Optional requirement only,Stock
Department of Health,Imperial College Healthcare NHS Trust,21/03/2019,Jac - Stock,Stock,Qualasept Ltd,3952294,58152,Optional requirement only,Stock
Department of Health,Imperial College Healthcare NHS Trust,21/03/2019,Jac - Stock,Stock,Roche Products Ltd,3940073,75738.17,Optional requirement only,Stock
Department of Health,Imperial College Healthcare NHS Trust,21/03/2019,Jac - Stock,Stock,Roche Products Ltd,3941429,44927.64,Optional requirement only,Stock
Department of Health,Imperial College Healthcare NHS Trust,21/03/2019,Jac - Stock,Stock,Roche Products Ltd,3945704,58444.32,Optional requirement only,Stock
Department of Health,Imperial College Healthcare NHS Trust,21/03/2019,Med & Surg Maint Contract,"Div Of Surg, Cardiov & Cancer",Varian Medical Systems Uk Ltd,3952742,31220.1,Optional requirement only,0
Department of Health,Imperial College Healthcare NHS Trust,21/03/2019,Nhs Pay Recharge In: Med,Div Of Med & Integrated Care,Chelsea And  Westminster Hospital Nhs Ft,3892240,31850,Optional requirement only,0
Department of Health,Imperial College Healthcare NHS Trust,21/03/2019,Other Research Exp - Non-Pay,Rd Medical Directorate,Central & North West London Nhs Ft,3939126,77788,Optional requirement only,0
Department of Health,Imperial College Healthcare NHS Trust,26/03/2019,Bldg/Eng Equip Maint/Rep,Nursing Directorate,Cbre Managed Services Ltd,3959687,146323.5,Optional requirement only,0
Department of Health,Imperial College Healthcare NHS Trust,26/03/2019,Car Salary Sacrifice,Ichnt Balance Sheet,Tuskerdirect Ltd,3947123,59422.14,Optional requirement only,0
Department of Health,Imperial College Healthcare NHS Trust,26/03/2019,Clinical Managed Service Contr,"Div Of Surg, Cardiov & Cancer",Chas A Blatchford And Sons Ltd,3944663,48084.09,Optional requirement only,0
Department of Health,Imperial College Healthcare NHS Trust,26/03/2019,Clinical Managed Service Contr,"Div Of Surg, Cardiov & Cancer",Medtronic Ltd,3950628,1480173.79,Optional requirement only,0
Department of Health,Imperial College Healthcare NHS Trust,26/03/2019,Clinical Managed Service Contr,"Div Of Surg, Cardiov & Cancer",Medtronic Ltd,3950629,1270112.66,Optional requirement only,0
Department of Health,Imperial College Healthcare NHS Trust,26/03/2019,Computer Hardware Purch,Nursing Directorate,Optimum Contact Limited,3954289,35032.97,Optional requirement only,0
Department of Health,Imperial College Healthcare NHS Trust,26/03/2019,Computer Software/License,Information & Comms Technology,Cerner Ltd,3959634,56476.8,Optional requirement only,0
Department of Health,Imperial College Healthcare NHS Trust,26/03/2019,Consultancy Fees,Div Of Med & Integrated Care,2020 Delivery Ltd,3950998,31441.2,Optional requirement only,0
Department of Health,Imperial College Healthcare NHS Trust,26/03/2019,Cy Auc -Addns-Bd Purchased,Capital Summary,Amber Group Limited,3950738,70058.3,Optional requirement only,0
Department of Health,Imperial College Healthcare NHS Trust,26/03/2019,Cy Auc -Addns-Bd Purchased,Capital Summary,Cbre Managed Services Ltd,3959687,211812.41,Optional requirement only,0
Department of Health,Imperial College Healthcare NHS Trust,26/03/2019,Cy Auc -Addns-Bd Purchased,Capital Summary,Conduct Services Ltd,3946923,57300,Optional requirement only,0
Department of Health,Imperial College Healthcare NHS Trust,26/03/2019,Cy Auc -Addns-Bd Purchased,Capital Summary,Cuffe  Plc,3944354,238822.8,Optional requirement only,0
Department of Health,Imperial College Healthcare NHS Trust,26/03/2019,Cy Auc -Addns-Bd Purchased,Capital Summary,Cuffe  Plc,3944357,71477.57,Optional requirement only,0
Department of Health,Imperial College Healthcare NHS Trust,26/03/2019,Cy Auc -Addns-Bd Purchased,Capital Summary,Metricab Power Engineering Ltd,3944858,716548.02,Optional requirement only,0
Department of Health,Imperial College Healthcare NHS Trust,26/03/2019,Cy Auc -Addns-Bd Purchased,Capital Summary,M&J Group (Construction & Roofin) Ltd [Cs],3958934,37114.97,Optional requirement only,0
Department of Health,Imperial College Healthcare NHS Trust,26/03/2019,Cy Auc -Addns-Bd Purchased,Capital Summary,Playfords Limited,3955953,150221.33,Optional requirement only,0
Department of Health,Imperial College Healthcare NHS Trust,26/03/2019,Cy Auc -Addns-Bd Purchased,Capital Summary,Princebuild Limited,3949012,47039.03,Optional requirement only,0
Department of Health,Imperial College Healthcare NHS Trust,26/03/2019,Cy Auc -Addns-Bd Purchased,Capital Summary,Varian Medical Systems Uk Ltd,3958564,362867.03,Optional requirement only,0
Department of Health,Imperial College Healthcare NHS Trust,26/03/2019,Cy Auc -Addns-Bd Purchased,Capital Summary,Willmott Dixon Construction,3944930,269644.8,Optional requirement only,0
Department of Health,Imperial College Healthcare NHS Trust,26/03/2019,Cy Auc -Addns- It Eqpt-Addns,Capital Summary,Cdw Ltd,3943842,70958.4,Optional requirement only,0
Department of Health,Imperial College Healthcare NHS Trust,26/03/2019,Cy Auc -Addns- It Eqpt-Addns,Capital Summary,Cdw Ltd,3944440,70958.4,Optional requirement only,0
Department of Health,Imperial College Healthcare NHS Trust,26/03/2019,Cy Auc -Addns- It Eqpt-Addns,Capital Summary,Cdw Ltd,3944441,56057.14,Optional requirement only,0
Department of Health,Imperial College Healthcare NHS Trust,26/03/2019,Cy Auc -Addns- It Eqpt-Addns,Capital Summary,Cdw Ltd,3944442,80590.27,Optional requirement only,0
Department of Health,Imperial College Healthcare NHS Trust,26/03/2019,Cy Auc -Addns- It Eqpt-Addns,Capital Summary,Cdw Ltd,3947173,34794,Optional requirement only,0
Department of Health,Imperial College Healthcare NHS Trust,26/03/2019,Cy Auc -Addns- It Eqpt-Addns,Capital Summary,Cdw Ltd,3957561,664443.53,Optional requirement only,0
Department of Health,Imperial College Healthcare NHS Trust,26/03/2019,Cy Auc -Addns- It Eqpt-Addns,Capital Summary,Cdw Ltd,3958917,54046.63,Optional requirement only,0
Department of Health,Imperial College Healthcare NHS Trust,26/03/2019,Cy Auc -Addns- It Eqpt-Addns,Capital Summary,European Electronique Ltd,3945621,107934,Optional requirement only,0
Department of Health,Imperial College Healthcare NHS Trust,26/03/2019,Cy Auc -Addns- It Eqpt-Addns,Capital Summary,European Electronique Ltd,3946089,186082.73,Optional requirement only,0
Department of Health,Imperial College Healthcare NHS Trust,26/03/2019,Cy Auc -Addns- It Eqpt-Addns,Capital Summary,Netcall Telecom Limited,3948473,46416,Optional requirement only,0
Department of Health,Imperial College Healthcare NHS Trust,26/03/2019,Cy Auc -Addns- It Eqpt-Addns,Capital Summary,Sdx Services Ltd,3954772,55000,Optional requirement only,0
Department of Health,Imperial College Healthcare NHS Trust,26/03/2019,Cy Auc -Addns- It Eqpt-Addns,Capital Summary,Securei.T. Environments Ltd,3950800,92160,Optional requirement only,0
Department of Health,Imperial College Healthcare NHS Trust,26/03/2019,Cy Auc -Addns- It Eqpt-Addns,Capital Summary,Securei.T. Environments Ltd,3950810,85092,Optional requirement only,0
Department of Health,Imperial College Healthcare NHS Trust,26/03/2019,Cy Auc -Addns- P & M-Purchased,Capital Summary,Hc Life Ltd [Cw],3952878,40704,Optional requirement only,0
Department of Health,Imperial College Healthcare NHS Trust,26/03/2019,Dialysers,Div Of Med & Integrated Care,Baxter Healthcare Ltd,3945598,42523.02,Optional requirement only,0
Department of Health,Imperial College Healthcare NHS Trust,26/03/2019,Electricity,Nursing Directorate,Edf Energy Customer Plc,3954814,35646.9,Optional requirement only,0
Department of Health,Imperial College Healthcare NHS Trust,26/03/2019,Electricity,Nursing Directorate,Edf Energy Customer Plc,3954815,86536.25,Optional requirement only,0
Department of Health,Imperial College Healthcare NHS Trust,26/03/2019,Electricity,Nursing Directorate,Edf Energy Customer Plc,3954819,249799.31,Optional requirement only,0
Department of Health,Imperial College Healthcare NHS Trust,26/03/2019,Electricity,Nursing Directorate,Edf Energy Customer Plc,3954824,263810.47,Optional requirement only,0
Department of Health,Imperial College Healthcare NHS Trust,26/03/2019,Ext Contract Portering,Nursing Directorate,Sodexo Limited,3889156,435246.21,Optional requirement only,0
Department of Health,Imperial College Healthcare NHS Trust,26/03/2019,Ext Contract Portering,Nursing Directorate,Sodexo Limited,3952591,429398.89,Optional requirement only,0
Department of Health,Imperial College Healthcare NHS Trust,26/03/2019,Ext Contr Catering,Nursing Directorate,Sodexo Limited,3889156,595882.35,Optional requirement only,0
Department of Health,Imperial College Healthcare NHS Trust,26/03/2019,Ext Contr Catering,Nursing Directorate,Sodexo Limited,3952591,587876.93,Optional requirement only,0
Department of Health,Imperial College Healthcare NHS Trust,26/03/2019,Ext Contr Catering,Private Patients Directorate,Sodexo Limited,3928795,157390.69,Optional requirement only,0
Department of Health,Imperial College Healthcare NHS Trust,26/03/2019,Ext Contr Catering,Private Patients Directorate,Sodexo Limited,3945199,157390.69,Optional requirement only,0
Department of Health,Imperial College Healthcare NHS Trust,26/03/2019,Ext Contr Domestics,Nursing Directorate,Sodexo Limited,3889156,1159139.27,Optional requirement only,0
Department of Health,Imperial College Healthcare NHS Trust,26/03/2019,Ext Contr Domestics,Nursing Directorate,Sodexo Limited,3952591,1143566.77,Optional requirement only,0
Department of Health,Imperial College Healthcare NHS Trust,26/03/2019,Ext Contr Logistics,Finance Directorate,Eleanor Hospital Logistics Ltd,3947002,158628.11,Optional requirement only,0
Department of Health,Imperial College Healthcare NHS Trust,26/03/2019,Ext Contr Oth Hotel Srv,Nursing Directorate,Sodexo Limited,3889156,86180.41,Optional requirement only,0
Department of Health,Imperial College Healthcare NHS Trust,26/03/2019,Ext Contr Oth Hotel Srv,Nursing Directorate,Sodexo Limited,3952591,85022.62,Optional requirement only,0
Department of Health,Imperial College Healthcare NHS Trust,26/03/2019,Gas,Nursing Directorate,Corona Energy,3954946,68798.23,Optional requirement only,0
Department of Health,Imperial College Healthcare NHS Trust,26/03/2019,Gas,Nursing Directorate,Corona Energy,3954947,93437.32,Optional requirement only,0
Department of Health,Imperial College Healthcare NHS Trust,26/03/2019,Gas,Nursing Directorate,Corona Energy,3954953,61917.62,Optional requirement only,0
Department of Health,Imperial College Healthcare NHS Trust,26/03/2019,Gas,Nursing Directorate,Corona Energy,3954959,143122.62,Optional requirement only,0
Department of Health,Imperial College Healthcare NHS Trust,26/03/2019,Interpreting Services,Div Of Women & Clin Support,Oncall Interpreters Ltd [Cw],3950083,34391.44,Optional requirement only,0
Department of Health,Imperial College Healthcare NHS Trust,26/03/2019,Isotopes,Div Of Women & Clin Support,Mallinckrodt Rp Uk Ltd,3945519,35220,Optional requirement only,0
Department of Health,Imperial College Healthcare NHS Trust,26/03/2019,Items Pending Investigation,Capital Summary,Nhs Supply Chain (Capital/Leasing 905),3888763,102079.77,Optional requirement only,0
Department of Health,Imperial College Healthcare NHS Trust,26/03/2019,Items Pending Investigation,Capital Summary,Nhs Supply Chain (Capital/Leasing 905),3948502,85083.37,Optional requirement only,0
Department of Health,Imperial College Healthcare NHS Trust,26/03/2019,Jac - Stock,Stock,Alliance Healthcare (Distribution) Ltd,3958350,35154,Optional requirement only,Stock
Department of Health,Imperial College Healthcare NHS Trust,26/03/2019,Jac - Stock,Stock,Alliance Healthcare (Distribution) Ltd,3959165,35898.31,Optional requirement only,Stock
Department of Health,Imperial College Healthcare NHS Trust,26/03/2019,Jac - Stock,Stock,Amgen Ltd,3950458,48408,Optional requirement only,Stock
Department of Health,Imperial College Healthcare NHS Trust,26/03/2019,Jac - Stock,Stock,Csl Behring Uk Ltd,3956055,109200,Optional requirement only,Stock
Department of Health,Imperial College Healthcare NHS Trust,26/03/2019,Jac - Stock,Stock,Csl Behring Uk Ltd,3956057,29250,Optional requirement only,Stock
Department of Health,Imperial College Healthcare NHS Trust,26/03/2019,Jac - Stock,Stock,Csl Behring Uk Ltd,3956058,35750,Optional requirement only,Stock
Department of Health,Imperial College Healthcare NHS Trust,26/03/2019,Jac - Stock,Stock,Genzyme Therapeutics Ltd,3950450,185988,Optional requirement only,Stock
Department of Health,Imperial College Healthcare NHS Trust,26/03/2019,Jac - Stock,Stock,Janssen-Cilag Ltd,3950448,86400,Optional requirement only,Stock
Department of Health,Imperial College Healthcare NHS Trust,26/03/2019,Jac - Stock,Stock,Jazz Pharmaceuticals Uk Limited [Ph],3956081,31536,Optional requirement only,Stock
Department of Health,Imperial College Healthcare NHS Trust,26/03/2019,Jac - Stock,Stock,Polar Speed Distribution Ltd,3959211,53298,Optional requirement only,Stock
Department of Health,Imperial College Healthcare NHS Trust,26/03/2019,Jac - Stock,Stock,Roche Products Ltd,3944622,33278.4,Optional requirement only,Stock
Department of Health,Imperial College Healthcare NHS Trust,26/03/2019,Jac - Stock,Stock,Roche Products Ltd,3956127,68539.22,Optional requirement only,Stock
Department of Health,Imperial College Healthcare NHS Trust,26/03/2019,Lease Charges,Information & Comms Technology,Xerox (Uk) Ltd,3946131,43914.89,Optional requirement only,0
Department of Health,Imperial College Healthcare NHS Trust,26/03/2019,Lease Charges,Information & Comms Technology,Xerox (Uk) Ltd,3946134,51305.53,Optional requirement only,0
Department of Health,Imperial College Healthcare NHS Trust,26/03/2019,Med & Surg Equip General,"Div Of Surg, Cardiov & Cancer",Intuitive Surgical Ltd,3958486,49647.6,Optional requirement only,0
Department of Health,Imperial College Healthcare NHS Trust,26/03/2019,Med & Surg Equip General,"Div Of Surg, Cardiov & Cancer",Intuitive Surgical Ltd,3958914,55360.8,Optional requirement only,0
Department of Health,Imperial College Healthcare NHS Trust,26/03/2019,Med & Surg Equip General,Div Of Women & Clin Support,Lloyds Retail Chemists Ltd,3946975,2952125.66,Optional requirement only,0
Department of Health,Imperial College Healthcare NHS Trust,26/03/2019,Med & Surg Equip Repair,Nursing Directorate,Ge Medical Systems Limited,3958632,663016.8,Optional requirement only,0
Department of Health,Imperial College Healthcare NHS Trust,26/03/2019,Med & Surg Equip Repair,Nursing Directorate,Ge Medical Systems Limited,3958633,731203.2,Optional requirement only,0
Department of Health,Imperial College Healthcare NHS Trust,26/03/2019,Med & Surg Equip Repair,Nursing Directorate,Ge Medical Systems Limited,3958634,738430.8,Optional requirement only,0
Department of Health,Imperial College Healthcare NHS Trust,26/03/2019,Patients Appl: Purchase,"Div Of Surg, Cardiov & Cancer",Chas A Blatchford And Sons Ltd,3947023,43360.27,Optional requirement only,0
Department of Health,Imperial College Healthcare NHS Trust,26/03/2019,Phone Instal & Maint,Information & Comms Technology,M&S Medicom,3958670,47224.2,Optional requirement only,0
Department of Health,Imperial College Healthcare NHS Trust,26/03/2019,Postage & Carriage,Div Of Women & Clin Support,Xerox (Uk) Ltd,3945140,46469.53,Optional requirement only,0
Department of Health,Imperial College Healthcare NHS Trust,26/03/2019,Prostheses,"Div Of Surg, Cardiov & Cancer",Chas A Blatchford And Sons Ltd,3944664,35235.37,Optional requirement only,0
Department of Health,Imperial College Healthcare NHS Trust,26/03/2019,Rent,Nursing Directorate,Metropolitan Thames Valley,3957115,44967.34,Optional requirement only,0
Department of Health,Imperial College Healthcare NHS Trust,26/03/2019,Services Received - Nhsts,Nursing Directorate,G E Healthcare Ltd,3922708,51162.26,Optional requirement only,0
Department of Health,Imperial College Healthcare NHS Trust,26/03/2019,Services Received - Nhsts,Nursing Directorate,G E Healthcare Ltd,3924356,49467.6,Optional requirement only,0
Department of Health,Imperial College Healthcare NHS Trust,26/03/2019,Services Received - Nhsts,Nursing Directorate,G E Healthcare Ltd,3957216,38463.4,Optional requirement only,0
Department of Health,Imperial College Healthcare NHS Trust,26/03/2019,Sterile Products,"Div Of Surg, Cardiov & Cancer",Medtronic Ltd,3955001,35640,Optional requirement only,0
Department of Health,Imperial College Healthcare NHS Trust,26/03/2019,Supplies Issues Recharges,Stock,Nhs Supply Chain (Consumables 101),3923698,157910.66,Optional requirement only,Stock
Department of Health,Imperial College Healthcare NHS Trust,26/03/2019,Supplies Issues Recharges,Stock,Nhs Supply Chain (Consumables 101),3937116,115637.77,Optional requirement only,Stock
Department of Health,Imperial College Healthcare NHS Trust,26/03/2019,Supplies Issues Recharges,Stock,Nhs Supply Chain (Consumables 101),3937117,141559.85,Optional requirement only,Stock
Department of Health,Imperial College Healthcare NHS Trust,26/03/2019,Supplies Issues Recharges,Stock,Nhs Supply Chain (Consumables 101),3937118,156373.81,Optional requirement only,Stock
Department of Health,Imperial College Healthcare NHS Trust,26/03/2019,Supplies Issues Recharges,Stock,Nhs Supply Chain (Consumables 101),3941820,105054.95,Optional requirement only,Stock
Department of Health,Imperial College Healthcare NHS Trust,26/03/2019,Supplies Issues Recharges,Stock,Nhs Supply Chain (Consumables 101),3941822,154761.48,Optional requirement only,Stock
Department of Health,Imperial College Healthcare NHS Trust,26/03/2019,Supplies Issues Recharges,Stock,Nhs Supply Chain (Consumables 101),3945600,191157.89,Optional requirement only,Stock
Department of Health,Imperial College Healthcare NHS Trust,26/03/2019,Supplies Issues Recharges,Stock,Nhs Supply Chain (Consumables 101),3945602,114525.19,Optional requirement only,Stock
Department of Health,Imperial College Healthcare NHS Trust,26/03/2019,Supplies Issues Recharges,Stock,Nhs Supply Chain (Consumables 101),3945604,148859.8,Optional requirement only,Stock
Department of Health,Imperial College Healthcare NHS Trust,26/03/2019,Supplies Issues Recharges,Stock,Nhs Supply Chain (Consumables 101),3950311,128544.39,Optional requirement only,Stock
Department of Health,Imperial College Healthcare NHS Trust,26/03/2019,Supplies Issues Recharges,Stock,Nhs Supply Chain (Consumables 101),3950312,152331.45,Optional requirement only,Stock
Department of Health,Imperial College Healthcare NHS Trust,26/03/2019,Supplies Issues Recharges,Stock,Nhs Supply Chain (Maintenance 201),3809594,156126.5,Optional requirement only,Stock
Department of Health,Imperial College Healthcare NHS Trust,26/03/2019,Supplies Issues Recharges,Stock,Nhs Supply Chain (Maintenance 201),3904224,165593.47,Optional requirement only,Stock
Department of Health,Imperial College Healthcare NHS Trust,26/03/2019,Supplies Issues Recharges,Stock,Nhs Supply Chain (Maintenance 201),3904229,181349.68,Optional requirement only,Stock
Department of Health,Imperial College Healthcare NHS Trust,28/03/2019,Blood Products,Pathology,Nhs Blood And Transplant,15243,61105,Optional requirement only,0
Department of Health,Imperial College Healthcare NHS Trust,28/03/2019,Clinical Managed Service Contr,Pathology,Abbott Laboratories Ltd,13233,277392.08,Optional requirement only,0
Department of Health,Imperial College Healthcare NHS Trust,28/03/2019,Contr Other External,Nursing Directorate,Cbre Managed Services Ltd,3959671,780224.22,Optional requirement only,0
Department of Health,Imperial College Healthcare NHS Trust,28/03/2019,Med & Surg Equip General,"Div Of Surg, Cardiov & Cancer",Karl Storz Endoscopy (Uk) Ltd,3891921,67990.8,Optional requirement only,0
Department of Health,Imperial College Healthcare NHS Trust,28/03/2019,Nhs Pay Recharge In: Med,"Div Of Surg, Cardiov & Cancer",Buckinghamshire Healthcare Nhs Trust,3839663,105439.14,Optional requirement only,0
Department of Health,Imperial College Healthcare NHS Trust,28/03/2019,Purch Hcare Independent Sector,"Div Of Surg, Cardiov & Cancer",Bmi Healthcare Ltd,3942971,449867.79,Optional requirement only,0
Department of Health,Imperial College Healthcare NHS Trust,28/03/2019,Services Received - Nhsts,"Div Of Surg, Cardiov & Cancer",Buckinghamshire Healthcare Nhs Trust,3838164,91018.08,Optional requirement only,0
Department of Health,Imperial College Healthcare NHS Trust,28/03/2019,Services Received - Nhsts,"Div Of Surg, Cardiov & Cancer",Buckinghamshire Healthcare Nhs Trust,3838165,63623.33,Optional requirement only,0
Department of Health,Imperial College Healthcare NHS Trust,28/03/2019,Services Received - Nhsts,"Div Of Surg, Cardiov & Cancer",Buckinghamshire Healthcare Nhs Trust,3838170,88939.11,Optional requirement only,0
Department of Health,Imperial College Healthcare NHS Trust,28/03/2019,Services Received - Nhsts,"Div Of Surg, Cardiov & Cancer",Buckinghamshire Healthcare Nhs Trust,3838187,90629.89,Optional requirement only,0
Department of Health,Imperial College Healthcare NHS Trust,28/03/2019,Services Received - Nhsts,"Div Of Surg, Cardiov & Cancer",Buckinghamshire Healthcare Nhs Trust,3839664,211773.6,Optional requirement only,0
Department of Health,Imperial College Healthcare NHS Trust,28/03/2019,Services Received - Nhsts,"Div Of Surg, Cardiov & Cancer",Buckinghamshire Healthcare Nhs Trust,3880985,51797.49,Optional requirement only,0
Department of Health,Imperial College Healthcare NHS Trust,28/03/2019,Supplies Issues Recharges,Stock,Nhs Supply Chain (Consumables 101),3950313,156800.12,Optional requirement only,Stock
Department of Health,Imperial College Healthcare NHS Trust,28/03/2019,Supplies Issues Recharges,Stock,Nhs Supply Chain (Consumables 101),3955070,155298.36,Optional requirement only,Stock
Department of Health,Imperial College Healthcare NHS Trust,28/03/2019,Supplies Issues Recharges,Stock,Nhs Supply Chain (Consumables 101),3955071,121787.58,Optional requirement only,Stock
Department of Health,Imperial College Healthcare NHS Trust,28/03/2019,Supplies Issues Recharges,Stock,Nhs Supply Chain (Consumables 101),3955072,160853.08,Optional requirement only,Stock
Department of Health,Imperial College Healthcare NHS Trust,29/03/2019,Computer Software/License,Information & Comms Technology,Cerner Ltd,3956806,293435.72,Optional requirement only,0
Department of Health,Imperial College Healthcare NHS Trust,29/03/2019,Cy Auc -Addns- It Eqpt-Addns,Capital Summary,Cerner Ltd,3963283,36000,Optional requirement only,0
Department of Health,Imperial College Healthcare NHS Trust,29/03/2019,Cy Auc -Addns- It Eqpt-Addns,Capital Summary,Cerner Ltd,3963284,204000,Optional requirement only,0
Department of Health,Imperial College Healthcare NHS Trust,29/03/2019,Rent,Other Hq Departments,Nhs Property Services Ltd,3963593,178746.94,Optional requirement only,0
,,,,,,,68435117.48,,
